lending/lending_fUSD_20250719
["ID","MTS","AMOUNT","RATE_DAILY","PERIOD"]
[373317560,1752943844341,-480.0,0.00019178,2]
[373317562,1752943844350,-480.0,0.00019178,2]
[373317564,1752943844359,-879.16,0.00019178,2]
[373317566,1752943844368,-480.0,0.00019178,2]
[373317568,1752943844378,-480.0,0.00019178,2]
[373317570,1752943844386,-552.45,0.00019178,2]
[373317571,1752943844397,-480.0,0.00019178,2]
[373317573,1752943844406,-480.0,0.00019178,2]
[373317575,1752943844415,-480.0,0.00019178,2]
[373317577,1752943844424,-480.0,0.00019178,2]
[373317579,1752943844433,-480.0,0.00019178,2]
[373317581,1752943844441,-480.0,0.00019178,2]
[373317583,1752943844450,-2775.95,0.00019178,2]
[373317585,1752943844459,-480.0,0.00019178,2]
[373317587,1752943844468,-728.17,0.00019178,2]
[373317589,1752943844477,-480.0,0.00019178,2]
[373317591,1752943844486,-480.0,0.00019178,2]
[373317593,1752943844495,-587.34,0.00019178,2]
[373317595,1752943844504,-912.42,0.00019178,2]
[373317597,1752943844514,-519.09,0.00019178,2]
[373317599,1752943844523,-480.0,0.00019178,2]
[373317601,1752943844533,-480.0,0.00019178,2]
[373317603,1752943844542,-480.0,0.00019178,2]
[373317605,1752943844551,-480.0,0.00019178,2]
[373317607,1752943844560,-480.0,0.00019178,2]
[373317609,1752943844569,-480.0,0.00019178,2]
[373317611,1752943844579,-480.0,0.00019178,2]
[373317613,1752943844588,-305.16045718,0.00019178,2]
[373317615,1752943844597,-480.0,0.00019178,2]
[373317617,1752943844606,-659.47,0.00019178,2]
[373317619,1752943844615,-991.3,0.00019178,2]
[373317622,1752943844624,-991.3,0.00019178,2]
[373317624,1752943844633,-1040.27,0.00019178,2]
[373317626,1752943844640,-480.0,0.00019178,2]
[373317627,1752943844647,-480.0,0.00019178,2]
[373317629,1752943844655,-360.0,0.00019178,2]
[373317631,1752943844664,-480.0,0.00019178,2]
[373317633,1752943844671,-585.72,0.00019178,2]
[373317635,1752943844680,-480.0,0.00019178,2]
[373317637,1752943844689,-639.04,0.00019178,2]
[373317640,1752943844697,-438.3731164,0.00019178,2]
[373317641,1752943844705,-480.0,0.00019178,2]
[373317643,1752943844712,-556.83,0.00019178,2]
[373317645,1752943844723,-480.0,0.00019178,2]
[373317647,1752943844731,-480.0,0.00019178,2]
[373317649,1752943844738,-480.0,0.00019178,2]
[373317651,1752943844746,-480.0,0.00019178,2]
[373317653,1752943844755,-1437.95,0.00019178,2]
[373317655,1752943844766,-545.63,0.00019178,2]
[373317657,1752943844775,-781.47,0.00019178,2]
[373317659,1752943844784,-480.0,0.00019178,2]
[373317661,1752943844793,-480.0,0.00019178,2]
[373317663,1752943844805,-1105.47,0.00019178,2]
[373317665,1752943844815,-480.0,0.00019178,2]
[373317667,1752943844825,-531.31,0.00019178,2]
[373317669,1752943844836,-480.0,0.00019178,2]
[373317671,1752943844845,-633.88,0.00019178,2]
[373317673,1752943844855,-240.0,0.00019178,2]
[373317675,1752943844865,-420.21400927,0.00019178,2]
[373317677,1752943844874,-1624.27,0.00019178,2]
[373317679,1752943844883,-587.49,0.00019178,2]
[373317681,1752943844897,-1423.27,0.00019178,2]
[373317682,1752943844907,-192.17897221,0.00019178,2]
[373317684,1752943844916,-480.0,0.00019178,2]
[373317686,1752943844926,-480.0,0.00019178,2]
[373317688,1752943844935,-732.76,0.00019178,2]
[373317690,1752943844945,-380.0,0.00019178,2]
[373317692,1752943844955,-1060.24,0.00019178,2]
[373317694,1752943844965,-400.0,0.00019178,2]
[373317696,1752943844974,-380.0,0.00019178,2]
[373317698,1752943844984,-480.0,0.00019178,2]
[373317700,1752943844993,-480.0,0.00019178,2]
[373317702,1752943845002,-536.35,0.00019178,2]
[373317704,1752943845012,-480.0,0.00019178,2]
[373317706,1752943845021,-480.0,0.00019178,2]
[373317708,1752943845031,-480.0,0.00019178,2]
[373317710,1752943845040,-480.0,0.00019178,2]
[373317712,1752943845050,-1470.77,0.00019178,2]
[373317714,1752943845059,-480.0,0.00019178,2]
[373317716,1752943845070,-1633.7,0.00019178,2]
[373317718,1752943845081,-493.52,0.00019178,2]
[373317720,1752943845090,-4700.03,0.00019178,2]
[373317723,1752943845111,-480.0,0.00019178,2]
[373317724,1752943845122,-480.0,0.00019178,2]
[373317726,1752943845131,-606.61,0.00019178,2]
[373317728,1752943845140,-480.0,0.00019178,2]
[373317730,1752943845150,-480.0,0.00019178,2]
[373317732,1752943845159,-480.0,0.00019178,2]
[373317734,1752943845169,-1009.49,0.00019178,2]
[373317736,1752943845178,-480.0,0.00019178,2]
[373317738,1752943845188,-576.46,0.00019178,2]
[373317740,1752943845197,-480.0,0.00019178,2]
[373317742,1752943845208,-491.06,0.00019178,2]
[373317744,1752943845218,-358.38938366,0.00019178,2]
[373317746,1752943845227,-576.6,0.00019178,2]
[373317748,1752943845236,-588.39,0.00019178,2]
[373317750,1752943845247,-5960.49,0.00019178,2]
[373317752,1752943845257,-480.0,0.00019178,2]
[373317754,1752943845267,-1021.89,0.00019178,2]
[373317756,1752943845277,-480.0,0.00019178,2]
[373317758,1752943845287,-480.0,0.00019178,2]
[373317760,1752943845296,-1000.0,0.00019183,2]
[373317762,1752943845306,-14529.35668286,0.00019187,2]
[373317764,1752943845316,-6968.76100469,0.00019199,2]
[373317766,1752943845326,-420.0,0.00019232,2]
[373317768,1752943845336,-776.0,0.00019232,2]
[373317791,1752943845544,-4172.0,0.00019241,2]
[373317794,1752943845554,-604.0,0.00019268,2]
[373317795,1752943845564,-433.97632293,0.00019282,2]
[373317797,1752943845573,-480.0,0.00019282,2]
[373317799,1752943845583,-480.0,0.00019282,2]
[373317801,1752943845593,-402.87,0.00019282,2]
[373317803,1752943845602,-503.89,0.00019282,2]
[373317805,1752943845614,-503.89,0.00019282,2]
[373317807,1752943845624,-503.89,0.00019282,2]
[373317809,1752943845633,-503.89,0.00019282,2]
[373317811,1752943845642,-152.509943,0.00019282,2]
[373317813,1752943845652,-151.0,0.00019282,2]
[373317815,1752943845661,-1525.629002,0.00019282,2]
[373317817,1752943845671,-1525.629002,0.00019282,2]
[373317819,1752943845680,-151.0,0.00019283,2]
[373317821,1752943845689,-155.942333,0.00019283,2]
[373317822,1752943845699,-51313.7816116,0.00019283,2]
[373317824,1752943845708,-1967.2303405,0.00019283,2]
[373317826,1752943845720,-490.4141652,0.00019283,2]
[373317827,1752943845730,-151.0,0.00019283,2]
[373317829,1752943845739,-151.0,0.00019283,2]
[373317831,1752943845748,-151.0,0.00019283,2]
[373317833,1752943845758,-151.0,0.00019283,2]
[373317835,1752943845768,-208.995214,0.00019283,2]
[373317836,1752943845777,-208.995214,0.00019283,2]
[373317838,1752943845787,-151.0,0.00019283,2]
[373317840,1752943845797,-151.0,0.00019283,2]
[373317842,1752943845807,-151.0,0.00019283,2]
[373317843,1752943845816,-154.102125,0.00019283,2]
[373317845,1752943845826,-288.937377,0.00019283,2]
[373317847,1752943845836,-151.0,0.00019283,2]
[373317849,1752943845846,-630.627786,0.00019283,2]
[373317851,1752943845856,-151.0,0.00019283,2]
[373317852,1752943845865,-630.627786,0.00019283,2]
[373317854,1752943845875,-151.0,0.00019283,2]
[373317856,1752943845885,-152.763305,0.00019283,2]
[373317859,1752943845894,-151.0,0.00019283,2]
[373317861,1752943845904,-151.0,0.00019283,2]
[373317863,1752943845914,-151.0,0.00019283,2]
[373317864,1752943845924,-266.819656,0.00019283,2]
[373317866,1752943845933,-266.819656,0.00019283,2]
[373317868,1752943845942,-151.0,0.00019283,2]
[373317869,1752943845952,-151.0,0.00019283,2]
[373317871,1752943845962,-925.557106,0.00019283,2]
[373317873,1752943845971,-309.574514,0.00019283,2]
[373317874,1752943845981,-151.0,0.00019283,2]
[373317876,1752943845990,-925.557106,0.00019283,2]
[373317878,1752943846000,-151.0,0.00019283,2]
[373317879,1752943846010,-309.574514,0.00019283,2]
[373317881,1752943846020,-151.0,0.00019283,2]
[373317883,1752943846029,-151.198605,0.00019283,2]
[373317884,1752943846038,-151.0,0.00019283,2]
[373317886,1752943846048,-151.0,0.00019283,2]
[373317888,1752943846057,-503.89,0.00019285,2]
[373317889,1752943846066,-666.0,0.00019286,2]
[373317891,1752943846076,-300.0,0.00019286,2]
[373317893,1752943846086,-503.89,0.00019286,2]
[373317895,1752943846096,-151.0,0.00019286,2]
[373317896,1752943846109,-151.0,0.00019286,2]
[373317898,1752943846120,-151.0,0.00019286,2]
[373317900,1752943846130,-151.0,0.00019286,2]
[373317902,1752943846139,-151.0,0.00019286,2]
[373317903,1752943846148,-170.0,0.00019286,2]
[373317905,1752943846157,-991.3,0.00019286,2]
[373317907,1752943846167,-991.3,0.00019286,2]
[373317909,1752943846176,-289.26198543,0.00019287,2]
[373317910,1752943846185,-151.0,0.00019287,2]
[373317912,1752943846195,-151.0,0.00019287,2]
[373317914,1752943846204,-151.0,0.00019287,2]
[373317916,1752943846214,-151.0,0.00019287,2]
[373317917,1752943846223,-480.0,0.00019287,2]
[373317919,1752943846233,-480.0,0.00019287,2]
[373317921,1752943846243,-480.0,0.00019287,2]
[373317922,1752943846251,-1557.145121,0.00019287,2]
[373317924,1752943846261,-1459.65329,0.00019287,2]
[373317926,1752943846270,-1472.732795,0.00019287,2]
[373317928,1752943846279,-480.0,0.00019287,2]
[373317929,1752943846288,-427.01053424,0.00019287,2]
[373317931,1752943846297,-380.0,0.00019287,2]
[373317933,1752943846307,-480.0,0.00019287,2]
[373317935,1752943846316,-480.0,0.00019287,2]
[373317937,1752943846325,-437.14,0.00019287,2]
[373317939,1752943846336,-480.0,0.00019287,2]
[373317941,1752943846345,-480.0,0.00019287,2]
[373317942,1752943846354,-480.0,0.00019287,2]
[373317944,1752943846364,-480.0,0.00019287,2]
[373317946,1752943846374,-173.86380945,0.00019287,2]
[373317948,1752943846383,-245.71794044,0.00019287,2]
[373317950,1752943846392,-480.0,0.00019287,2]
[373317951,1752943846402,-480.0,0.00019287,2]
[373317953,1752943846412,-151.0,0.00019287,2]
[373317955,1752943846422,-151.0,0.00019287,2]
[373317957,1752943846432,-480.0,0.00019287,2]
[373317959,1752943846442,-480.0,0.00019287,2]
[373317960,1752943846451,-480.0,0.00019287,2]
[373317962,1752943846460,-339.0,0.00019287,2]
[373317964,1752943846470,-480.0,0.00019287,2]
[373317966,1752943846481,-480.0,0.00019287,2]
[373317968,1752943846490,-367.85683997,0.00019287,2]
[373317970,1752943846500,-480.0,0.00019287,2]
[373317972,1752943846509,-151.0,0.00019287,2]
[373317973,1752943846519,-392.42559086,0.00019287,2]
[373317975,1752943846529,-287.92546,0.00019287,2]
[373317977,1752943846539,-209.330925,0.00019287,2]
[373317979,1752943846548,-420.0,0.00019287,2]
[373317981,1752943846558,-480.0,0.00019287,2]
[373317982,1752943846567,-380.32562599,0.00019287,2]
[373317984,1752943846577,-480.0,0.00019287,2]
[373317986,1752943846588,-480.0,0.00019287,2]
[373317988,1752943846598,-480.0,0.00019287,2]
[373317990,1752943846608,-550.45475532,0.00019287,2]
[373317992,1752943846617,-480.0,0.00019287,2]
[373317994,1752943846627,-480.0,0.00019287,2]
[373317995,1752943846636,-380.0,0.00019287,2]
[373317997,1752943846646,-480.0,0.00019287,2]
[373317999,1752943846655,-480.0,0.00019287,2]
[373318001,1752943846665,-480.0,0.00019287,2]
[373318003,1752943846674,-151.0,0.00019287,2]
[373318005,1752943846683,-151.0,0.00019287,2]
[373318006,1752943846693,-480.0,0.00019287,2]
[373318008,1752943846703,-480.0,0.00019287,2]
[373318010,1752943846712,-480.0,0.00019287,2]
[373318013,1752943846727,-466.69289493,0.00019287,2]
[373318015,1752943846736,-271.735795,0.00019287,2]
[373318017,1752943846746,-360.0,0.00019287,2]
[373318019,1752943846755,-271.735795,0.00019287,2]
[373318021,1752943846764,-271.735795,0.00019287,2]
[373318022,1752943846775,-271.735795,0.00019287,2]
[373318024,1752943846784,-480.0,0.00019287,2]
[373318026,1752943846794,-272.25555728,0.00019287,2]
[373318028,1752943846805,-240.0,0.00019287,2]
[373318030,1752943846813,-480.0,0.00019287,2]
[373318032,1752943846822,-480.0,0.00019287,2]
[373318034,1752943846832,-151.0,0.00019287,2]
[373318035,1752943846841,-151.0,0.00019287,2]
[373318037,1752943846851,-281.83763,0.00019287,2]
[373318039,1752943846860,-480.0,0.00019287,2]
[373318041,1752943846870,-151.0,0.00019287,2]
[373318043,1752943846879,-151.0,0.00019287,2]
[373318045,1752943846890,-353.52,0.00019287,2]
[373318047,1752943846899,-192.822514,0.00019287,2]
[373318049,1752943846909,-321.35,0.00019287,2]
[373318050,1752943846918,-480.0,0.00019287,2]
[373318052,1752943846928,-572.25,0.00019287,2]
[373318053,1752943846937,-151.0,0.00019287,2]
[373318055,1752943846947,-480.0,0.00019287,2]
[373318057,1752943846957,-151.0,0.00019287,2]
[373318059,1752943846968,-273.73,0.00019287,2]
[373318061,1752943846977,-480.0,0.00019287,2]
[373318063,1752943846986,-151.0,0.00019287,2]
[373318064,1752943846996,-151.0,0.00019287,2]
[373318066,1752943847006,-462.0,0.00019287,2]
[373318068,1752943847016,-480.0,0.00019287,2]
[373318070,1752943847025,-480.0,0.00019287,2]
[373318072,1752943847037,-151.0,0.00019287,2]
[373318074,1752943847047,-151.0,0.00019287,2]
[373318075,1752943847056,-596.34,0.00019287,2]
[373318077,1752943847066,-480.0,0.00019287,2]
[373318079,1752943847076,-480.0,0.00019287,2]
[373318081,1752943847086,-480.0,0.00019287,2]
[373318083,1752943847096,-480.0,0.00019287,2]
[373318085,1752943847105,-480.0,0.00019287,2]
[373318087,1752943847115,-380.0,0.00019287,2]
[373318088,1752943847125,-367.53,0.00019287,2]
[373318090,1752943847135,-480.0,0.00019287,2]
[373318092,1752943847145,-480.0,0.00019287,2]
[373318094,1752943847154,-251.530109,0.00019287,2]
[373318096,1752943847163,-480.0,0.00019287,2]
[373318097,1752943847173,-480.0,0.00019287,2]
[373318099,1752943847182,-251.530109,0.00019287,2]
[373318101,1752943847192,-440.0,0.00019287,2]
[373318103,1752943847202,-332.13,0.00019287,2]
[373318105,1752943847211,-494.57,0.00019287,2]
[373318107,1752943847221,-480.0,0.00019287,2]
[373318108,1752943847231,-480.0,0.00019287,2]
[373318110,1752943847241,-318.33803926,0.00019287,2]
[373318112,1752943847250,-480.0,0.00019287,2]
[373318114,1752943847260,-480.0,0.00019287,2]
[373318116,1752943847270,-555.93,0.00019287,2]
[373318118,1752943847279,-736.27,0.00019287,2]
[373318120,1752943847289,-467.78259203,0.00019287,2]
[373318122,1752943847299,-151.0,0.00019287,2]
[373318124,1752943847308,-198.2231,0.00019287,2]
[373318125,1752943847317,-480.0,0.00019287,2]
[373318127,1752943847327,-480.0,0.00019287,2]
[373318129,1752943847338,-359.81,0.00019287,2]
[373318130,1752943847347,-440.0,0.00019287,2]
[373318131,1752943847356,-480.0,0.00019287,2]
[373318132,1752943847366,-480.0,0.00019287,2]
[373318133,1752943847376,-480.0,0.00019287,2]
[373318134,1752943847386,-480.0,0.00019287,2]
[373318135,1752943847396,-219.57,0.00019287,2]
[373318136,1752943847405,-480.0,0.00019287,2]
[373318137,1752943847415,-480.0,0.00019287,2]
[373318138,1752943847424,-480.0,0.00019287,2]
[373318139,1752943847434,-480.0,0.00019287,2]
[373318140,1752943847443,-480.0,0.00019287,2]
[373318141,1752943847453,-480.0,0.00019287,2]
[373318142,1752943847462,-480.0,0.00019287,2]
[373318143,1752943847472,-480.0,0.00019287,2]
[373318144,1752943847481,-275.565567,0.00019287,2]
[373318145,1752943847491,-151.0,0.00019287,2]
[373318147,1752943847500,-275.565567,0.00019287,2]
[373318148,1752943847510,-151.0,0.00019287,2]
[373318150,1752943847519,-480.0,0.00019287,2]
[373318152,1752943847528,-480.0,0.00019287,2]
[373318154,1752943847538,-275.565567,0.00019287,2]
[373318156,1752943847547,-151.0,0.00019287,2]
[373318158,1752943847557,-480.0,0.00019287,2]
[373318160,1752943847566,-275.565567,0.00019287,2]
[373318162,1752943847575,-151.0,0.00019287,2]
[373318164,1752943847586,-480.0,0.00019287,2]
[373318166,1752943847596,-354.387571,0.00019287,2]
[373318168,1752943847605,-480.0,0.00019287,2]
[373318170,1752943847615,-466.74289509,0.00019287,2]
[373318172,1752943847624,-151.0,0.00019287,2]
[373318174,1752943847634,-480.0,0.00019287,2]
[373318176,1752943847643,-223.110452,0.00019287,2]
[373318178,1752943847652,-545.91,0.00019287,2]
[373318180,1752943847662,-354.387571,0.00019287,2]
[373318182,1752943847672,-480.0,0.00019287,2]
[373318184,1752943847681,-480.0,0.00019287,2]
[373318186,1752943847691,-480.0,0.00019287,2]
[373318188,1752943847701,-480.0,0.00019287,2]
[373318190,1752943847711,-480.0,0.00019287,2]
[373318192,1752943847724,-595.78,0.00019287,2]
[373318194,1752943847734,-509.69,0.00019287,2]
[373318195,1752943847744,-480.0,0.00019287,2]
[373318197,1752943847753,-179.690044,0.00019287,2]
[373318199,1752943847764,-179.690044,0.00019287,2]
[373318202,1752943847774,-179.690044,0.00019287,2]
[373318203,1752943847783,-179.690044,0.00019287,2]
[373318205,1752943847794,-568.62,0.00019287,2]
[373318207,1752943847803,-480.0,0.00019287,2]
[373318209,1752943847813,-480.0,0.00019287,2]
[373318211,1752943847822,-151.0,0.00019287,2]
[373318213,1752943847831,-480.0,0.00019287,2]
[373318215,1752943847840,-151.0,0.00019287,2]
[373318217,1752943847850,-340.0,0.00019287,2]
[373318219,1752943847859,-480.0,0.00019287,2]
[373318221,1752943847868,-480.0,0.00019287,2]
[373318223,1752943847877,-480.0,0.00019287,2]
[373318231,1752943847944,-480.0,0.00019287,2]
[373318233,1752943847956,-151.0,0.00019287,2]
[373318235,1752943847965,-151.0,0.00019287,2]
[373318237,1752943847975,-480.0,0.00019287,2]
[373318239,1752943847984,-480.0,0.00019287,2]
[373318241,1752943847993,-480.0,0.00019287,2]
[373318243,1752943848002,-716.3,0.00019287,2]
[373318245,1752943848011,-480.0,0.00019287,2]
[373318247,1752943848021,-151.0,0.00019287,2]
[373318249,1752943848030,-151.0,0.00019287,2]
[373318251,1752943848041,-480.0,0.00019287,2]
[373318253,1752943848050,-388.47,0.00019287,2]
[373318255,1752943848061,-480.0,0.00019287,2]
[373318257,1752943848070,-480.0,0.00019287,2]
[373318259,1752943848080,-480.0,0.00019287,2]
[373318261,1752943848090,-480.0,0.00019287,2]
[373318262,1752943848099,-480.0,0.00019287,2]
[373318264,1752943848119,-360.0,0.00019287,2]
[373318266,1752943848129,-480.0,0.00019287,2]
[373318268,1752943848138,-151.528726,0.00019287,2]
[373318270,1752943848147,-480.0,0.00019287,2]
[373318272,1752943848156,-151.0,0.00019287,2]
[373318274,1752943848165,-480.0,0.00019287,2]
[373318276,1752943848175,-480.0,0.00019287,2]
[373318278,1752943848184,-151.0,0.00019287,2]
[373318280,1752943848194,-480.0,0.00019287,2]
[373318282,1752943848203,-480.0,0.00019287,2]
[373318284,1752943848212,-480.0,0.00019287,2]
[373318286,1752943848221,-480.0,0.00019287,2]
[373318287,1752943848230,-480.0,0.00019287,2]
[373318289,1752943848239,-480.0,0.00019287,2]
[373318291,1752943848248,-480.0,0.00019287,2]
[373318293,1752943848258,-486.51,0.00019287,2]
[373318295,1752943848267,-480.0,0.00019287,2]
[373318296,1752943848277,-480.0,0.00019287,2]
[373318298,1752943848286,-480.0,0.00019287,2]
[373318300,1752943848295,-480.0,0.00019287,2]
[373318302,1752943848305,-480.0,0.00019287,2]
[373318304,1752943848315,-382.244973,0.00019287,2]
[373318306,1752943848325,-382.244973,0.00019287,2]
[373318308,1752943848335,-382.244973,0.00019287,2]
[373318310,1752943848345,-480.0,0.00019287,2]
[373318312,1752943848354,-382.244973,0.00019287,2]
[373318314,1752943848363,-300.0,0.00019287,2]
[373318316,1752943848373,-480.0,0.00019287,2]
[373318318,1752943848382,-480.0,0.00019287,2]
[373318320,1752943848392,-480.0,0.00019287,2]
[373318322,1752943848401,-695.29,0.00019287,2]
[373318324,1752943848411,-480.0,0.00019287,2]
[373318326,1752943848422,-480.0,0.00019287,2]
[373318328,1752943848431,-480.0,0.00019287,2]
[373318329,1752943848440,-480.0,0.00019287,2]
[373318331,1752943848449,-480.0,0.00019287,2]
[373318333,1752943848459,-574.83273484,0.00019287,2]
[373318335,1752943848468,-480.0,0.00019287,2]
[373318337,1752943848477,-375.27,0.00019287,2]
[373318339,1752943848487,-151.0,0.00019287,2]
[373318341,1752943848496,-151.0,0.00019287,2]
[373318343,1752943848505,-480.0,0.00019287,2]
[373318345,1752943848514,-480.0,0.00019287,2]
[373318347,1752943848524,-151.0,0.00019287,2]
[373318349,1752943848533,-151.0,0.00019287,2]
[373318351,1752943848542,-480.0,0.00019287,2]
[373318352,1752943848552,-297.72994457,0.00019287,2]
[373318354,1752943848561,-151.0,0.00019287,2]
[373318356,1752943848570,-233.21,0.00019287,2]
[373318358,1752943848580,-151.0,0.00019287,2]
[373318360,1752943848590,-515.25,0.00019287,2]
[373318362,1752943848599,-151.0,0.00019287,2]
[373318364,1752943848608,-151.0,0.00019287,2]
[373318366,1752943848618,-151.0,0.00019287,2]
[373318368,1752943848627,-151.0,0.00019287,2]
[373318370,1752943848636,-480.0,0.00019287,2]
[373318372,1752943848645,-151.0,0.00019287,2]
[373318374,1752943848654,-151.0,0.00019287,2]
[373318376,1752943848663,-480.0,0.00019287,2]
[373318378,1752943848672,-395.07,0.00019287,2]
[373318380,1752943848682,-506.58,0.00019287,2]
[373318382,1752943848692,-480.0,0.00019287,2]
[373318384,1752943848701,-480.0,0.00019287,2]
[373318386,1752943848710,-196.83125189,0.00019287,2]
[373318388,1752943848723,-480.0,0.00019287,2]
[373318390,1752943848732,-480.0,0.00019287,2]
[373318392,1752943848742,-428.28,0.00019287,2]
[373318394,1752943848752,-480.0,0.00019287,2]
[373318395,1752943848762,-480.0,0.00019287,2]
[373318397,1752943848772,-480.0,0.00019287,2]
[373318399,1752943848782,-480.0,0.00019287,2]
[373318401,1752943848793,-398.82789769,0.00019287,2]
[373318403,1752943848804,-360.0,0.00019287,2]
[373318405,1752943848814,-480.0,0.00019287,2]
[373318407,1752943848825,-480.0,0.00019287,2]
[373318409,1752943848835,-480.0,0.00019287,2]
[373318411,1752943848845,-360.0,0.00019287,2]
[373318413,1752943848855,-480.0,0.00019287,2]
[373318415,1752943848865,-380.0,0.00019287,2]
[373318417,1752943848874,-480.0,0.00019287,2]
[373318419,1752943848884,-480.0,0.00019287,2]
[373318421,1752943848895,-480.0,0.00019287,2]
[373318423,1752943848904,-480.0,0.00019287,2]
[373318425,1752943848914,-480.0,0.00019287,2]
[373318427,1752943848924,-208.995214,0.00019287,2]
[373318429,1752943848933,-208.995214,0.00019287,2]
[373318431,1752943848943,-320.0,0.00019287,2]
[373318433,1752943848953,-480.0,0.00019287,2]
[373318435,1752943848964,-354.74697238,0.00019287,2]
[373318437,1752943848975,-480.0,0.00019287,2]
[373318439,1752943848984,-480.0,0.00019287,2]
[373318441,1752943848994,-208.995214,0.00019287,2]
[373318443,1752943849003,-208.995214,0.00019287,2]
[373318445,1752943849012,-242.916974,0.00019287,2]
[373318446,1752943849021,-480.0,0.00019287,2]
[373318448,1752943849031,-151.0,0.00019287,2]
[373318450,1752943849040,-480.0,0.00019287,2]
[373318452,1752943849049,-151.0,0.00019287,2]
[373318454,1752943849059,-480.0,0.00019287,2]
[373318456,1752943849068,-480.0,0.00019287,2]
[373318458,1752943849077,-500.0,0.00019287,2]
[373318460,1752943849087,-500.0,0.00019287,2]
[373318461,1752943849096,-480.0,0.00019287,2]
[373318463,1752943849106,-480.0,0.00019287,2]
[373318465,1752943849115,-500.0,0.00019287,2]
[373318467,1752943849124,-480.0,0.00019287,2]
[373318469,1752943849133,-150.0,0.00019287,2]
[373318471,1752943849142,-150.0,0.00019287,2]
[373318473,1752943849152,-175.00933508,0.00019287,2]
[373318475,1752943849161,-480.0,0.00019287,2]
[373318477,1752943849170,-150.0,0.00019287,2]
[373318479,1752943849180,-480.0,0.00019287,2]
[373318481,1752943849190,-480.0,0.00019287,2]
[373318483,1752943849200,-480.0,0.00019287,2]
[373318485,1752943849209,-480.0,0.00019287,2]
[373318487,1752943849219,-500.0,0.00019287,2]
[373318488,1752943849229,-480.0,0.00019287,2]
[373318491,1752943849243,-150.0,0.00019287,2]
[373318493,1752943849255,-150.0,0.00019287,2]
[373318495,1752943849264,-200.0,0.00019287,2]
[373318497,1752943849273,-480.0,0.00019287,2]
[373318498,1752943849282,-480.0,0.00019287,2]
[373318500,1752943849291,-340.0,0.00019287,2]
[373318502,1752943849300,-480.0,0.00019287,2]
[373318504,1752943849309,-480.0,0.00019287,2]
[373318506,1752943849318,-480.0,0.00019287,2]
[373318508,1752943849328,-510.51,0.00019287,2]
[373318510,1752943849337,-630.627786,0.00019287,2]
[373318512,1752943849346,-630.627786,0.00019287,2]
[373318514,1752943849356,-480.0,0.00019287,2]
[373318516,1752943849365,-630.627786,0.00019287,2]
[373318518,1752943849373,-630.627786,0.00019287,2]
[373318520,1752943849382,-380.0,0.00019287,2]
[373318521,1752943849391,-480.0,0.00019287,2]
[373318523,1752943849400,-480.0,0.00019287,2]